bitfinex/quotes_BTCUSD_20251104
["timestamp","ask_amount","ask_price","bid_price","bid_amount"]
[1762233021595,0.5668606,106820.0,106810.0,0.12265397]
[1762233022302,0.5668606,106820.0,106810.0,0.09934397]
[1762233023168,0.5755403,106820.0,106810.0,0.09934397]
[1762233023565,0.5668606,106820.0,106810.0,0.30990235]
[1762233023798,0.5668606,106820.0,106810.0,0.09934397]
[1762233024199,0.56405659,106820.0,106810.0,0.12265397]
[1762233025850,0.5553706,106820.0,106810.0,0.12265397]
[1762233025969,0.55583327,106820.0,106810.0,0.12265397]
[1762233026172,0.55583327,106820.0,106800.0,0.00667]
[1762233026173,0.18724838,106810.0,106800.0,0.00667]
[1762233026383,0.78731285,106810.0,106800.0,0.00667]
[1762233026593,0.18726591,106800.0,106790.0,0.11445397]
[1762233027004,0.18726591,106800.0,106790.0,0.12996397]
[1762233027863,0.18726591,106800.0,106790.0,0.13044649]
[1762233028067,0.18726591,106800.0,106790.0,0.31772994]
[1762233028510,0.56297611,106800.0,106790.0,0.31772994]
[1762233028856,0.56297611,106800.0,106790.0,0.13044649]
[1762233029280,0.56297611,106800.0,106790.0,0.31772994]
[1762233029494,0.3757102,106800.0,106790.0,0.31772994]
[1762233029764,0.60259305,106810.0,106790.0,0.31772994]
[1762233030008,0.95129882,106810.0,106800.0,0.21499591]
[1762233030227,0.37685024,106810.0,106800.0,0.23899591]
[1762233030426,0.34870577,106810.0,106800.0,0.23899591]
[1762233030629,0.34,106810.0,106800.0,0.23899591]
[1762233030832,0.342,106810.0,106800.0,0.23899591]
[1762233031041,0.55259838,106810.0,106800.0,0.02773]
[1762233031409,0.92016652,106810.0,106800.0,0.05173]
[1762233031610,0.91939787,106810.0,106800.0,0.02773]
[1762233032318,0.93524787,106810.0,106790.0,0.11562649]
[1762233032523,0.18726591,106800.0,106790.0,0.11562649]
[1762233032736,0.18726591,106800.0,106790.0,0.30290994]
[1762233032939,0.18726591,106800.0,106790.0,0.13220649]
[1762233034500,0.81189804,106800.0,106790.0,0.09162649]
[1762233034700,1.15189804,106800.0,106790.0,0.07983649]
[1762233034901,1.18004378,106800.0,106790.0,0.07983649]
[1762233039273,1.18304378,106800.0,106790.0,0.07983649]
[1762233039522,0.60903165,106800.0,106790.0,0.07983649]
[1762233040550,1.18304378,106800.0,106790.0,0.07983649]
[1762233041540,0.99577787,106800.0,106790.0,0.07983649]
[1762233041739,1.18304378,106800.0,106790.0,0.07983649]
[1762233045790,0.60903165,106800.0,106790.0,0.07983649]
[1762233046899,0.58629165,106800.0,106790.0,0.13196649]
[1762233047098,0.58629165,106800.0,106790.0,0.29477994]
[1762233047417,0.60955165,106800.0,106790.0,0.77889994]
[1762233047619,0.58629165,106800.0,106790.0,0.77889994]
[1762233047732,0.60955165,106800.0,106790.0,0.77889994]
[1762233047938,0.57044165,106800.0,106790.0,0.81924994]
[1762233048138,0.57044165,106800.0,106790.0,0.63196649]
[1762233048897,0.57044165,106800.0,106790.0,0.81924994]
[1762233049105,0.003,106800.0,106790.0,0.81924994]
[1762233049948,0.00023135,106810.0,106790.0,0.81924994]
[1762233050150,0.00023135,106810.0,106800.0,0.2416225]
[1762233050372,0.18747973,106810.0,106800.0,0.19842591]
[1762233051411,0.18747973,106810.0,106800.0,0.23877591]
[1762233052541,0.00023135,106810.0,106800.0,0.23877591]
[1762233052747,0.18747973,106810.0,106800.0,0.23877591]
[1762233053307,0.00023135,106810.0,106800.0,0.23877591]
[1762233053515,0.18747973,106810.0,106800.0,0.05151]
[1762233053720,0.18747973,106810.0,106800.0,0.23877591]
[1762233055490,0.00023135,106810.0,106800.0,0.23877591]
[1762233057994,0.18747973,106810.0,106800.0,0.23877591]
[1762233058206,0.00023135,106810.0,106800.0,0.23877591]
[1762233059572,0.18747973,106810.0,106800.0,0.23877591]
[1762233059770,0.00023135,106810.0,106800.0,0.23877591]
[1762233061465,0.18747973,106810.0,106800.0,0.05151]
[1762233061884,0.18747973,106810.0,106800.0,0.23877591]
[1762233062765,0.18747973,106810.0,106800.0,0.05151]
[1762233065156,0.56306652,106810.0,106800.0,0.05151]
[1762233065576,0.56306652,106810.0,106800.0,0.23877591]
[1762233066110,0.37581814,106810.0,106800.0,0.23877591]
[1762233066308,0.00023135,106810.0,106800.0,0.23877591]
[1762233066813,0.18747973,106810.0,106800.0,0.23877591]
[1762233068648,0.00023135,106810.0,106800.0,0.23877591]
[1762233070166,0.18747973,106810.0,106800.0,0.24077591]
[1762233070983,0.00023135,106810.0,106800.0,0.24077591]
[1762233071603,0.00023135,106810.0,106800.0,0.24177591]
[1762233072765,0.91452029,106820.0,106800.0,0.24177591]
[1762233072970,0.91452029,106820.0,106810.0,0.09113397]
[1762233073189,0.93778029,106820.0,106810.0,0.09113397]
[1762233073752,1.3133292,106820.0,106810.0,0.09113397]
[1762233074066,1.2900692,106820.0,106810.0,0.09113397]
[1762233074285,1.2900692,106820.0,106810.0,0.27838235]
[1762233074445,1.2900692,106820.0,106810.0,0.29426235]
[1762233074652,0.02814059,106830.0,106820.0,0.18723085]
[1762233074868,0.20956026,106840.0,106830.0,0.18721332]
[1762233075026,0.01062446,106840.0,106830.0,0.31771729]
[1762233075227,0.6364236,106850.0,106840.0,0.1871958]
[1762233075416,0.02853405,106850.0,106840.0,0.2383458]
[1762233075660,0.01057042,106850.0,106840.0,0.2383458]
[1762233076083,0.01071512,106850.0,106840.0,0.2353458]
[1762233076283,0.0005447,106850.0,106840.0,0.2353458]
[1762233077071,0.0025447,106850.0,106840.0,0.2353458]
[1762233078163,0.0035447,106850.0,106840.0,0.2353458]
[1762233078360,0.0025447,106850.0,106840.0,0.2353458]
[1762233078764,0.0025447,106850.0,106840.0,0.2373458]
[1762233078986,0.0005447,106850.0,106840.0,0.2373458]
[1762233079113,0.00146977,106850.0,106840.0,0.2423458]
[1762233080128,0.00146977,106850.0,106840.0,0.05815]
[1762233080304,0.56419696,106850.0,106840.0,0.05815]
[1762233080509,0.56419696,106850.0,106840.0,0.2453458]
[1762233080693,0.56419696,106850.0,106840.0,0.05815]
[1762233080882,0.56419696,106850.0,106840.0,0.01827]
[1762233081087,0.56419696,106850.0,106840.0,0.2186258]
[1762233081292,0.56419696,106850.0,106840.0,0.2433458]
[1762233081491,0.56419696,106850.0,106840.0,0.05615]
[1762233081695,0.56419696,106850.0,106840.0,0.2433458]
[1762233081696,0.37701868,106850.0,106840.0,0.2433458]
[1762233081861,0.56419696,106850.0,106840.0,0.2383458]
[1762233082067,0.56419696,106850.0,106840.0,0.05115]
[1762233082378,0.56419696,106850.0,106840.0,0.05215]
[1762233082896,1.33116587,106850.0,106840.0,0.001]
[1762233083145,1.38736512,106850.0,106840.0,0.001]
[1762233083604,0.5271958,106840.0,106830.0,0.07935397]
[1762233083837,1.30576362,106840.0,106830.0,0.07935397]
[1762233084063,1.32971362,106840.0,106830.0,0.07935397]
[1762233084490,1.00529723,106840.0,106830.0,0.07935397]
[1762233084969,0.5786158,106840.0,106830.0,0.07935397]
[1762233085204,0.5796158,106840.0,106830.0,0.07935397]
[1762233085808,1.00629723,106840.0,106830.0,0.07935397]
[1762233086155,1.00729723,106840.0,106830.0,0.07935397]
[1762233086564,1.0354346,106840.0,106830.0,0.07935397]
[1762233088370,0.21733317,106840.0,106830.0,0.13050397]
[1762233088578,0.1891958,106840.0,106830.0,0.13050397]
[1762233089007,0.2389958,106840.0,106830.0,0.09062397]
[1762233089216,0.6425611,106840.0,106830.0,0.09062397]
[1762233089465,0.6425611,106840.0,106830.0,0.09162397]
[1762233089642,0.6425611,106840.0,106830.0,0.10803397]
[1762233089851,0.20036967,106840.0,106830.0,0.31858729]
[1762233090085,0.18888967,106840.0,106830.0,0.13137397]
[1762233090314,0.00069387,106840.0,106830.0,0.13137397]
[1762233090535,0.025,106860.0,106850.0,0.26653225]
[1762233090801,0.025,106860.0,106850.0,0.29500225]
[1762233091017,0.025,106860.0,106850.0,0.31834225]
[1762233091226,0.02546243,106860.0,106850.0,0.31834225]
[1762233091875,0.02546243,106860.0,106850.0,0.32034225]
[1762233092517,0.02546243,106860.0,106850.0,0.32334225]
[1762233094248,0.2126232,106860.0,106850.0,0.32334225]
[1762233094677,0.02546243,106860.0,106850.0,0.32334225]
[1762233094871,0.2126232,106860.0,106850.0,0.13616397]
[1762233095070,0.5681332,106860.0,106850.0,0.28359225]
[1762233095287,0.5919432,106860.0,106850.0,0.09641397]
[1762233095459,0.5919432,106860.0,106850.0,0.28359225]
[1762233095662,0.99481463,106860.0,106850.0,0.28359225]
[1762233096243,0.5681332,106860.0,106850.0,0.28359225]
[1762233097509,0.5919432,106860.0,106850.0,0.08435397]
[1762233097751,1.01862463,106860.0,106850.0,0.08435397]
[1762233097912,0.66682278,106860.0,106850.0,0.08435397]
[1762233098154,0.6531622,106860.0,106850.0,0.08435397]
[1762233099275,0.6293522,106860.0,106850.0,0.08435397]
[1762233099663,0.6531622,106860.0,106850.0,0.08435397]
[1762233101193,0.6606222,106860.0,106850.0,0.08435397]
[1762233102395,1.0006222,106860.0,106850.0,0.08435397]
[1762233103046,4.0006222,106860.0,106850.0,0.08435397]
[1762233103187,4.09768864,106860.0,106850.0,0.005]
[1762233103389,4.13307022,106860.0,106850.0,0.005]
[1762233103588,4.13203253,106860.0,106850.0,0.005]
[1762233103994,4.13203253,106860.0,106850.0,0.003]
[1762233104458,0.52718816,106850.0,106830.0,0.31053714]
[1762233104658,0.96534959,106850.0,106840.0,0.1871958]
[1762233105463,0.1871958,106840.0,106830.0,0.31068184]
[1762233105822,0.1871958,106840.0,106830.0,0.32671184]
[1762233106366,0.56257952,106840.0,106830.0,0.32671184]
[1762233106498,0.57405952,106840.0,106830.0,0.10979867]
[1762233106706,0.38686372,106840.0,106830.0,0.29701199]
[1762233106911,0.37538372,106840.0,106830.0,0.31833199]
[1762233107362,0.37538372,106840.0,106830.0,0.32333199]
[1762233107523,0.37538372,106840.0,106830.0,0.32633199]
[1762233110071,0.90257952,106840.0,106830.0,0.32633199]
[1762233110533,0.90257952,106840.0,106830.0,0.3274194]
[1762233110751,0.90257952,106840.0,106830.0,0.14020608]
[1762233111210,1.27796324,106840.0,106830.0,0.11588608]
[1762233111434,1.32944324,106840.0,106830.0,0.08858608]
[1762233111899,1.33193362,106840.0,106830.0,0.08858608]
[1762233112123,1.32944324,106840.0,106830.0,0.08858608]
[1762233112346,1.32944324,106840.0,106830.0,0.08358608]
[1762233112568,1.00538358,106840.0,106830.0,0.08658608]
[1762233113029,1.00538358,106840.0,106830.0,0.08058608]
[1762233113263,1.00538358,106840.0,106830.0,0.00323211]
[1762233113493,4.46126194,106840.0,106830.0,0.00223211]
[1762233113772,4.06269264,106840.0,106830.0,0.00223211]
[1762233114229,4.06269264,106840.0,106830.0,0.00123211]
[1762233114432,4.06469264,106840.0,106830.0,0.00123211]
[1762233114969,4.03552206,106840.0,106830.0,0.00123211]
[1762233115381,4.03852206,106840.0,106830.0,0.00123211]
[1762233116009,4.03552206,106840.0,106830.0,0.00123211]
[1762233116633,4.03852206,106840.0,106830.0,0.00123211]
[1762233119439,4.01038358,106840.0,106830.0,0.00123211]
[1762233123027,0.5836758,106840.0,106830.0,0.08058608]
[1762233123237,0.5586758,106840.0,106830.0,0.09223608]
[1762233123876,0.5536758,106840.0,106830.0,0.09223608]
[1762233124098,0.5796758,106840.0,106830.0,0.09223608]
[1762233124330,1.00638358,106840.0,106830.0,0.08058608]
[1762233125155,1.00738358,106840.0,106830.0,0.08058608]
[1762233126558,1.00738358,106840.0,106830.0,0.09223608]
[1762233126789,0.5291958,106840.0,106830.0,0.13258608]
[1762233127011,0.5441958,106840.0,106830.0,0.10826608]
[1762233127228,0.5556758,106840.0,106830.0,0.10826608]
[1762233127451,0.5406758,106840.0,106830.0,0.13258608]
[1762233127674,0.96738358,106840.0,106830.0,0.10826608]
[1762233127894,1.00738358,106840.0,106830.0,0.09223608]
[1762233128109,4.43409136,106840.0,106830.0,0.00123211]
[1762233128322,4.46326194,106840.0,106830.0,0.00123211]
[1762233128534,4.43409136,106840.0,106830.0,0.00123211]
[1762233129216,4.43631053,106840.0,106830.0,0.00123211]
[1762233129444,0.52724838,106810.0,106790.0,0.59100397]
[1762233129679,0.62341369,106800.0,106790.0,0.59148649]
[1762233129904,0.63841369,106800.0,106790.0,0.59148649]
[1762233130146,0.62341369,106800.0,106790.0,0.63183649]
[1762233130782,0.62341369,106800.0,106790.0,0.60751649]
[1762233131209,0.66341369,106800.0,106790.0,0.57983649]
[1762233131415,3.66341369,106800.0,106790.0,0.58183649]
[1762233132241,3.66341369,106800.0,106790.0,0.57983649]
[1762233132447,3.66341369,106800.0,106790.0,0.58083649]
[1762233132877,4.09012147,106800.0,106790.0,0.50148252]
[1762233133723,4.09012147,106800.0,106790.0,0.50248252]
[1762233134607,3.98841441,106800.0,106790.0,0.50248252]
[1762233135228,3.98841441,106800.0,106790.0,0.50148252]
[1762233135644,3.98841441,106800.0,106790.0,0.50240811]
[1762233135846,4.08299047,106800.0,106790.0,0.50240811]
[1762233136364,4.42299047,106800.0,106790.0,0.50240811]
[1762233136571,4.32841441,106800.0,106790.0,0.50240811]
[1762233136777,3.95256016,106800.0,106790.0,0.50240811]
[1762233137304,4.32841441,106800.0,106790.0,0.50240811]
[1762233137533,3.95256016,106800.0,106790.0,0.50240811]
[1762233137978,4.32841441,106800.0,106790.0,0.50240811]
[1762233138323,3.95256016,106800.0,106790.0,0.50240811]
[1762233142835,4.32841441,106800.0,106790.0,0.50240811]
[1762233151853,0.95009016,106800.0,106790.0,0.51409811]
[1762233152010,0.91256016,106800.0,106790.0,0.52977811]
[1762233152202,0.52726591,106800.0,106790.0,0.73983156]
[1762233152774,0.90312016,106800.0,106790.0,0.55254811]
[1762233152972,0.56312016,106800.0,106790.0,0.55254811]
[1762233155255,0.18726591,106800.0,106790.0,0.73983156]
[1762233155466,0.56312016,106800.0,106790.0,0.73983156]
[1762233156688,0.56312016,106800.0,106790.0,0.55254811]
[1762233157092,0.56312016,106800.0,106790.0,0.73983156]
[1762233157298,0.18726591,106800.0,106790.0,0.73983156]
[1762233157483,0.56312016,106800.0,106790.0,0.73983156]
[1762233159290,0.90312016,106800.0,106790.0,0.73983156]
[1762233159808,0.90312016,106800.0,106790.0,0.55254811]
[1762233160012,0.92843016,106800.0,106790.0,0.51409811]
[1762233160136,1.34828023,106800.0,106790.0,0.50240811]
[1762233162427,1.32681441,106800.0,106790.0,0.50240811]
[1762233163049,1.11301406,106800.0,106790.0,0.50240811]
[1762233163254,1.30027997,106800.0,106790.0,0.50240811]
[1762233163806,0.95096016,106800.0,106790.0,0.68969156]
[1762233164009,0.95096016,106800.0,106790.0,0.50240811]
[1762233165126,0.95096016,106800.0,106790.0,0.68969156]
[1762233165348,0.95096016,106800.0,106790.0,0.50240811]
[1762233167683,1.32681441,106800.0,106790.0,0.50240811]
[1762233168629,0.95096016,106800.0,106790.0,0.50240811]
[1762233168832,0.61096016,106800.0,106790.0,0.50240811]
[1762233173307,0.58843016,106800.0,106790.0,0.50240811]
[1762233173516,0.61148016,106800.0,106790.0,0.51422811]
[1762233174128,0.61148016,106800.0,106790.0,0.50240811]
[1762233174542,0.98733441,106800.0,106790.0,0.50240811]
[1762233179783,4.33317046,106800.0,106790.0,0.50240811]
[1762233179910,4.38343855,106800.0,106790.0,0.50240811]
[1762233180317,4.78785751,106800.0,106790.0,0.50240811]
[1762233180624,0.18733608,106760.0,106750.0,0.07935397]
[1762233180830,0.92946195,106760.0,106750.0,0.07935397]
[1762233181029,0.95251195,106760.0,106750.0,0.07935397]
[1762233181243,0.98066773,106760.0,106750.0,0.08028007]
[1762233181443,0.99076579,106760.0,106750.0,0.08028007]
[1762233182985,0.99076579,106760.0,106750.0,0.08528007]
[1762233183400,3.99076579,106760.0,106750.0,0.08528007]
[1762233183615,3.99076579,106760.0,106750.0,0.08028007]
[1762233183817,4.11329745,106760.0,106750.0,0.0009261]
[1762233184260,4.08534185,106760.0,106750.0,0.0019261]
[1762233184698,4.4611961,106760.0,106750.0,0.0019261]
[1762233184921,4.0911779,106760.0,106750.0,0.0019261]
[1762233185360,4.0911779,106760.0,106750.0,0.0049261]
[1762233185604,4.4728682,106760.0,106750.0,0.0039261]
[1762233185803,4.09701395,106760.0,106750.0,0.0009261]
[1762233186021,4.4728682,106760.0,106750.0,0.0009261]
[1762233186252,4.4728682,106760.0,106750.0,0.0019261]
[1762233186824,4.4728682,106760.0,106750.0,0.0009261]
[1762233187252,4.4738682,106760.0,106750.0,0.0009261]
[1762233187592,4.4748682,106760.0,106750.0,0.0009261]
[1762233188254,4.50343291,106760.0,106750.0,0.0009261]
[1762233188930,4.4748682,106760.0,106750.0,0.0009261]
[1762233190086,4.08734185,106760.0,106750.0,0.0009261]
[1762233192049,4.4631961,106760.0,106750.0,0.0009261]
[1762233192263,4.27906212,106750.0,106740.0,0.0002]
[1762233192471,4.42915291,106750.0,106740.0,0.0002]
[1762233192693,4.45011796,106750.0,106740.0,0.0002]
[1762233193337,4.47828378,106750.0,106740.0,0.0012]
[1762233194460,4.15417739,106750.0,106740.0,0.0012]
[1762233197867,4.15417739,106750.0,106740.0,0.00143159]
[1762233198625,3.69196155,106750.0,106740.0,0.00143159]
[1762233202939,0.18737118,106740.0,106730.0,0.29918224]
[1762233203171,3.0,106740.0,106730.0,0.29918224]
[1762233203390,0.19680362,106750.0,106740.0,0.22338118]
[1762233203605,0.00945,106750.0,106740.0,0.23997118]
[1762233203804,0.37760829,106750.0,106740.0,0.23997118]
[1762233204007,0.56496191,106750.0,106740.0,0.02873]
[1762233204697,0.56496191,106750.0,106740.0,0.23997118]
[1762233204910,0.56496191,106750.0,106740.0,0.24097118]
[1762233205124,0.36815829,106750.0,106740.0,0.24097118]
[1762233205328,0.55551191,106750.0,106740.0,0.24097118]
[1762233205750,0.56710191,106750.0,106740.0,0.0536]
[1762233205985,1.03310402,106750.0,106740.0,0.01314]
[1762233206426,1.03310402,106750.0,106740.0,0.01414]
[1762233206624,1.00980402,106750.0,106740.0,0.01314]
[1762233206832,1.00980402,106750.0,106740.0,0.01514]
[1762233207423,0.99470402,106750.0,106740.0,0.03173]
[1762233207749,0.99470402,106750.0,106740.0,0.0556]
[1762233208688,1.03442402,106750.0,106740.0,0.003]
[1762233209943,1.00980402,106750.0,106740.0,0.01508]
[1762233210565,1.03442402,106750.0,106740.0,0.01508]
[1762233210941,1.00980402,106750.0,106740.0,0.01508]
[1762233211735,0.99470402,106750.0,106740.0,0.24226118]
[1762233212136,0.98311402,106750.0,106740.0,0.24226118]
[1762233212763,0.98311402,106750.0,106740.0,0.05489]
[1762233212989,0.98311402,106750.0,106740.0,0.24226118]
[1762233213364,0.36815829,106750.0,106740.0,0.24226118]
[1762233213571,0.02815829,106750.0,106740.0,0.24226118]
[1762233214172,0.21551191,106750.0,106740.0,0.24226118]
[1762233214372,0.02815829,106750.0,106740.0,0.24226118]
[1762233215467,0.21551191,106750.0,106740.0,0.24226118]
[1762233216537,0.5915297,106750.0,106740.0,0.24226118]
[1762233216952,0.40417608,106750.0,106740.0,0.24226118]
[1762233217158,0.5915297,106750.0,106740.0,0.24226118]
[1762233218346,0.40417608,106750.0,106740.0,0.24226118]
[1762233218546,0.5915297,106750.0,106740.0,0.24226118]
[1762233218979,0.40417608,106750.0,106740.0,0.24226118]
[1762233219178,0.02815829,106750.0,106740.0,0.24226118]
[1762233219398,0.34133863,106760.0,106750.0,0.26670759]
[1762233219618,0.02949137,106760.0,106750.0,0.31859759]
[1762233219861,0.00133863,106760.0,106750.0,0.31859759]
[1762233220563,0.00133863,106760.0,106750.0,0.32259759]
[1762233221406,0.37735642,106760.0,106750.0,0.32459759]
[1762233221621,0.5646925,106760.0,106750.0,0.32459759]
[1762233222025,0.94071029,106760.0,106750.0,0.32459759]
[1762233222226,0.75337421,106760.0,106750.0,0.32459759]
[1762233222353,0.37735642,106760.0,106750.0,0.32459759]
[1762233222758,0.38726266,106760.0,106750.0,0.32459759]
[1762233222963,0.57459874,106760.0,106750.0,0.32459759]
[1762233223207,0.60275148,106760.0,106750.0,0.32459759]
[1762233223608,0.4154154,106760.0,106750.0,0.32459759]
[1762233223816,0.22673369,106760.0,106750.0,0.32459759]
[1762233224001,0.4154154,106760.0,106750.0,0.32459759]
[1762233224203,0.94275148,106760.0,106750.0,0.32459759]
[1762233227603,0.7554154,106760.0,106750.0,0.32459759]
[1762233227938,0.94275148,106760.0,106750.0,0.32459759]
[1762233228341,0.7554154,106760.0,106750.0,0.32459759]
[1762233229352,0.94275148,106760.0,106750.0,0.32459759]
[1762233231348,0.94275148,106760.0,106750.0,0.13724397]
[1762233231779,0.94275148,106760.0,106750.0,0.32459759]
[1762233233369,0.7554154,106760.0,106750.0,0.32459759]
[1762233233575,0.94275148,106760.0,106750.0,0.32459759]
[1762233233984,0.02949137,106760.0,106750.0,0.32459759]
[1762233234728,0.00995172,106780.0,106770.0,0.18731853]
[1762233234935,0.40416604,106790.0,106780.0,0.18730099]
[1762233235181,0.40416604,106790.0,106780.0,0.23973099]
[1762233235389,0.36814825,106790.0,106780.0,0.23973099]
[1762233235596,0.37823,106790.0,106780.0,0.23973099]
[1762233235809,0.03823,106790.0,106780.0,0.23973099]
[1762233236014,0.37823,106790.0,106780.0,0.23973099]
[1762233236214,0.03823,106790.0,106780.0,0.23973099]
[1762233236498,0.37823,106790.0,106780.0,0.23973099]
[1762233236644,0.03823,106790.0,106780.0,0.23973099]
[1762233237081,0.57338299,106790.0,106780.0,0.23973099]
[1762233237291,0.57338299,106790.0,106780.0,0.24073099]
[1762233237500,0.38609954,106790.0,106780.0,0.24073099]
[1762233237762,0.57338299,106790.0,106780.0,0.24073099]
[1762233238001,0.57338299,106790.0,106780.0,0.05343]
[1762233238228,0.60255072,106800.0,106780.0,0.24073099]
[1762233238461,0.56330124,106790.0,106780.0,0.24073099]
[1762233239130,0.56330124,106790.0,106780.0,0.05343]
[1762233239793,0.57324487,106790.0,106780.0,0.05343]
[1762233240013,0.57324487,106790.0,106780.0,0.05243]
[1762233240540,0.57324487,106790.0,106780.0,0.23973099]
[1762233240791,0.57393923,106790.0,106780.0,0.05243]
[1762233241032,0.58528923,106790.0,106780.0,0.02815]
[1762233241235,0.58528923,106790.0,106780.0,0.01249]
[1762233241236,0.62510923,106790.0,106780.0,0.01249]
[1762233241440,0.58528923,106790.0,106780.0,0.05343]
[1762233242455,0.58528923,106790.0,106780.0,0.02915]
[1762233242665,1.31683702,106790.0,106780.0,0.01249]
[1762233242822,4.34112702,106790.0,106780.0,0.001]
[1762233244248,0.52730099,106780.0,106770.0,0.07940221]
[1762233244457,1.32860657,106780.0,106770.0,0.07940221]
[1762233245267,4.32860657,106780.0,106770.0,0.07940221]
[1762233246515,4.32860657,106780.0,106770.0,0.08040221]
[1762233247238,4.35675881,106780.0,106770.0,0.08040221]
[1762233248369,1.33246881,106780.0,106770.0,0.09189221]
[1762233248614,1.35675881,106780.0,106770.0,0.09189221]
[1762233249530,1.35675881,106780.0,106770.0,0.08040221]
[1762233249747,1.35722176,106780.0,106770.0,0.08040221]
[1762233250471,0.05359519,106780.0,106770.0,0.29587074]
[1762233250646,0.59193397,106780.0,106770.0,0.32015074]
[1762233250837,0.90378173,106780.0,106770.0,0.32015074]
[1762233251044,0.71648074,106780.0,106770.0,0.32015074]
[1762233251635,0.90378173,106780.0,106770.0,0.32015074]
[1762233251842,0.52776394,106780.0,106770.0,0.32015074]
[1762233252046,0.90378173,106780.0,106770.0,0.32015074]
[1762233252252,0.71648074,106780.0,106770.0,0.32015074]
[1762233252446,0.71604976,106780.0,106770.0,0.32015074]
[1762233252908,0.90335075,106780.0,106770.0,0.32015074]
[1762233253463,1.27936854,106780.0,106770.0,0.32015074]
[1762233254490,0.52733296,106780.0,106770.0,0.32015074]
[1762233254692,0.71604976,106780.0,106770.0,0.32015074]
[1762233255667,0.90335075,106780.0,106770.0,0.32015074]
[1762233256270,0.90335075,106780.0,106770.0,0.13283221]
[1762233256500,0.90317307,106780.0,106770.0,0.13283221]
[1762233257625,0.90317307,106780.0,106770.0,0.32015074]
[1762233258534,0.71587208,106780.0,106770.0,0.32015074]
[1762233258937,0.90317307,106780.0,106770.0,0.32015074]
[1762233260164,0.90317307,106780.0,106770.0,0.13283221]
[1762233260374,0.90317307,106780.0,106770.0,0.32015074]
[1762233260832,0.90317307,106780.0,106770.0,0.13283221]
[1762233261258,0.90317307,106780.0,106770.0,0.32015074]
[1762233262414,0.90317307,106780.0,106770.0,0.13283221]
[1762233263298,0.90261242,106780.0,106770.0,0.13283221]
[1762233263553,0.90261242,106780.0,106770.0,0.32015074]
[1762233264031,0.2610181,106790.0,106770.0,0.32015074]
[1762233264032,0.00994363,106790.0,106770.0,0.32015074]
[1762233264260,0.19722764,106790.0,106780.0,0.21472099]
[1762233264476,0.56312412,106790.0,106780.0,0.23904099]
[1762233264897,0.57307695,106790.0,106780.0,0.23904099]
[1762233265101,0.91307695,106790.0,106780.0,0.23904099]
[1762233265494,0.72679294,106790.0,106780.0,0.23904099]
[1762233265981,0.92877639,106790.0,106780.0,0.02742]
[1762233266186,0.18730099,106780.0,106770.0,0.30253074]
[1762233266388,0.37584011,106780.0,106770.0,0.30253074]
[1762233266621,0.5631411,106780.0,106770.0,0.13039221]
[1762233266824,0.5631411,106780.0,106770.0,0.31771074]
[1762233267447,0.37584011,106780.0,106770.0,0.31771074]
[1762233267674,0.5631411,106780.0,106770.0,0.31771074]
[1762233267881,0.5725911,106780.0,106770.0,0.09089221]
[1762233268103,0.5725911,106780.0,106770.0,0.09189221]
[1762233268964,3.9530011,106780.0,106770.0,0.09189221]
[1762233269164,3.9530011,106780.0,106770.0,0.09461974]
[1762233269936,0.9282211,106780.0,106770.0,0.28193827]
[1762233270695,0.9282211,106780.0,106770.0,0.09461974]
[1762233271261,0.9514511,106780.0,106770.0,0.09461974]
[1762233271478,0.74092011,106780.0,106770.0,0.29850827]
[1762233271678,0.9031411,106780.0,106770.0,0.13481974]
[1762233272325,0.9031411,106780.0,106770.0,0.32213827]
[1762233273290,0.71584011,106780.0,106770.0,0.32213827]
[1762233273768,0.9031411,106780.0,106770.0,0.32213827]
[1762233273950,0.9031411,106780.0,106770.0,0.13481974]
[1762233274546,0.9031411,106780.0,106770.0,0.32213827]
[1762233274750,0.9125911,106780.0,106770.0,0.11118974]
[1762233275010,0.9291511,106780.0,106770.0,0.08312974]
[1762233275184,0.52730099,106780.0,106770.0,0.13549974]
[1762233275369,0.9031411,106780.0,106770.0,0.13549974]
[1762233275757,0.9031411,106780.0,106770.0,0.13249974]
[1762233276164,0.9031411,106780.0,106770.0,0.13349974]
[1762233276567,0.9031411,106780.0,106770.0,0.31981827]
[1762233276778,0.9031411,106780.0,106770.0,0.13249974]
[1762233277158,0.9031411,106780.0,106770.0,0.31981827]
[1762233277877,0.9031411,106780.0,106770.0,0.13249974]
[1762233278304,0.9031411,106780.0,106770.0,0.31981827]
[1762233279167,0.9031411,106780.0,106770.0,0.13249974]
[1762233286221,0.9191311,106780.0,106770.0,0.13249974]
[1762233286427,0.5725911,106780.0,106770.0,0.13314974]
[1762233287923,0.5885811,106780.0,106770.0,0.09229974]
[1762233288144,0.5725911,106780.0,106770.0,0.13314974]
[1762233288670,0.5725911,106780.0,106770.0,0.00104824]
[1762233288671,4.43473626,106780.0,106770.0,0.00104824]
[1762233288884,4.41097984,106780.0,106770.0,0.00104824]
[1762233289104,4.45316736,106780.0,106770.0,0.00104824]
[1762233289526,4.4580646,106780.0,106770.0,0.00104824]
[1762233289952,4.4580646,106780.0,106770.0,4.824e-05]
[1762233290157,4.4590646,106780.0,106770.0,4.824e-05]
[1762233290394,4.44603357,106780.0,106770.0,4.824e-05]
[1762233291049,4.53867632,106780.0,106770.0,4.824e-05]
[1762233291318,4.50597227,106780.0,106770.0,4.824e-05]
[1762233291541,4.48221585,106780.0,106770.0,4.824e-05]
[1762233291977,4.49690687,106780.0,106770.0,4.824e-05]
[1762233303568,3.98781483,106780.0,106770.0,4.824e-05]
[1762233303765,3.60274759,106780.0,106770.0,0.05308824]
[1762233303982,3.60274759,106780.0,106770.0,0.10806221]
[1762233304259,3.60274759,106780.0,106770.0,4.824e-05]
[1762233304260,3.98291759,106780.0,106770.0,4.824e-05]
[1762233304470,4.3587577,106780.0,106770.0,4.824e-05]
[1762233304674,4.45333376,106780.0,106770.0,4.824e-05]
[1762233306505,4.48951604,106780.0,106770.0,4.824e-05]
[1762233307261,4.50354707,106780.0,106770.0,4.824e-05]
[1762233307896,4.48951604,106780.0,106770.0,4.824e-05]
[1762233308144,3.98291759,106780.0,106770.0,4.824e-05]
[1762233309783,4.3587577,106780.0,106770.0,4.824e-05]
[1762233311085,4.40897101,106780.0,106770.0,4.824e-05]
[1762233311292,4.39493998,106780.0,106770.0,4.824e-05]
[1762233312034,4.40897101,106780.0,106770.0,4.824e-05]
[1762233312238,4.48951604,106780.0,106770.0,4.824e-05]
[1762233314870,4.50844466,106780.0,106770.0,4.824e-05]
[1762233315081,4.54444818,106780.0,106770.0,4.824e-05]
[1762233315288,4.52688677,106780.0,106770.0,4.824e-05]
[1762233315937,4.52588677,106780.0,106770.0,4.824e-05]
[1762233316354,4.52488677,106780.0,106770.0,4.824e-05]
[1762233316558,6.03313553,106780.0,106770.0,4.824e-05]
[1762233318091,6.03813553,106780.0,106770.0,4.824e-05]
[1762233323712,6.06328674,106780.0,106770.0,4.824e-05]
[1762233324583,3.93965564,106770.0,106760.0,0.00085689]
[1762233324794,4.05947842,106770.0,106760.0,0.00090514]
[1762233325003,3.86988761,106770.0,106760.0,0.00090514]
[1762233325213,4.8095158,106770.0,106760.0,0.00090514]